[Event "Titled Tuesday Blitz August 1 Late 2023"]
[White "Thiel, Thomas"]
[Black "Toropov, Pavel"]
[WhiteFideId "4615964"]
[BlackFideId "24129178"]
[WhiteElo "2258"]
[BlackElo "2535"]
[Result "0-1"]
[Round "1"]
[TimeControl "180+1"]
[Date "2023.08.01"]
[WhiteClock "0:00:02"]
[BlackClock "0:00:05"]
[Board "155"]

1. e4 {[%clk 0:03:00]}  e6 {[%clk 0:02:58]} 2. d4 {[%clk 0:02:59]}  d5 {[%clk 0:02:59]} 3. Nc3 {[%clk 0:02:56]}  dxe4 {[%clk 0:03:00]} 4. Nxe4 {[%clk 0:02:56]}  Nd7 {[%clk 0:03:01]} 5. Nf3 {[%clk 0:02:54]}  Ngf6 {[%clk 0:03:02]} 6. Nxf6+ {[%clk 0:02:52]}  Nxf6 {[%clk 0:03:03]} 7. Bg5 {[%clk 0:02:49]}  Be7 {[%clk 0:02:58]} 8. Bd3 {[%clk 0:02:47]}  O-O {[%clk 0:02:58]} 9. Qe2 {[%clk 0:02:47]}  c5 {[%clk 0:02:54]} 10. O-O-O {[%clk 0:02:43]}  cxd4 {[%clk 0:02:50]} 11. h4 {[%clk 0:02:43]}  Qa5 {[%clk 0:02:12]} 12. Kb1 {[%clk 0:02:40]}  Bd7 {[%clk 0:02:12]} 13. Ne5 {[%clk 0:02:37]}  Rad8 {[%clk 0:02:02]} 14. g4 {[%clk 0:02:25]}  Bc6 {[%clk 0:01:49]} 15. Nxc6 {[%clk 0:02:23]}  bxc6 {[%clk 0:01:50]} 16. Bxf6 {[%clk 0:02:21]}  Bxf6 {[%clk 0:01:45]} 17. g5 {[%clk 0:02:21]}  Be7 {[%clk 0:01:44]} 18. Qe4 {[%clk 0:02:21]}  g6 {[%clk 0:01:42]} 19. Qxc6 {[%clk 0:02:19]}  Rb8 {[%clk 0:01:37]} 20. b3 {[%clk 0:01:56]}  Rfc8 {[%clk 0:01:34]} 21. Qa6 {[%clk 0:01:56]}  Qc3 {[%clk 0:01:29]} 22. h5 {[%clk 0:01:50]}  Qc6 {[%clk 0:00:32]} 23. hxg6 {[%clk 0:01:43]}  hxg6 {[%clk 0:00:33]} 24. Qxc6 {[%clk 0:01:32]}  Rxc6 {[%clk 0:00:33]} 25. f4 {[%clk 0:01:32]}  Bd6 {[%clk 0:00:29]} 26. Rh4 {[%clk 0:01:29]}  Kf8 {[%clk 0:00:22]} 27. Be4 {[%clk 0:01:19]}  Rc3 {[%clk 0:00:12]} 28. Rxd4 {[%clk 0:01:17]}  Ke7 {[%clk 0:00:13]} 29. Bd3 {[%clk 0:01:16]}  Bc5 {[%clk 0:00:08]} 30. Ra4 {[%clk 0:01:14]}  Bb6 {[%clk 0:00:08]} 31. Rh7 {[%clk 0:01:11]}  Rg8 {[%clk 0:00:07]} 32. Rc4 {[%clk 0:01:04]}  Rxc4 {[%clk 0:00:07]} 33. Bxc4 {[%clk 0:01:04]}  Rd8 {[%clk 0:00:07]} 34. Bd3 {[%clk 0:01:03]}  Rg8 {[%clk 0:00:06]} 35. c3 {[%clk 0:01:01]}  Bc7 {[%clk 0:00:06]} 36. Rh4 {[%clk 0:00:58]}  Rd8 {[%clk 0:00:06]} 37. Kc2 {[%clk 0:00:57]}  e5 {[%clk 0:00:07]} 38. fxe5 {[%clk 0:00:55]}  Bxe5 {[%clk 0:00:07]} 39. Ra4 {[%clk 0:00:51]}  Rd7 {[%clk 0:00:07]} 40. b4 {[%clk 0:00:50]}  Rc7 {[%clk 0:00:07]} 41. Ra3 {[%clk 0:00:44]}  Bf4 {[%clk 0:00:07]} 42. c4 {[%clk 0:00:37]}  Bxg5 {[%clk 0:00:07]} 43. c5 {[%clk 0:00:37]}  Bf4 {[%clk 0:00:06]} 44. Bc4 {[%clk 0:00:36]}  g5 {[%clk 0:00:06]} 45. Kd3 {[%clk 0:00:35]}  f5 {[%clk 0:00:06]} 46. Kd4 {[%clk 0:00:35]}  g4 {[%clk 0:00:07]} 47. b5 {[%clk 0:00:33]}  Kf6 {[%clk 0:00:07]} 48. Ra6+ {[%clk 0:00:30]}  Kg5 {[%clk 0:00:06]} 49. b6 {[%clk 0:00:31]}  axb6 {[%clk 0:00:06]} 50. cxb6 {[%clk 0:00:31]}  Re7 {[%clk 0:00:07]} 51. Bd5 {[%clk 0:00:28]}  g3 {[%clk 0:00:07]} 52. Ra7 {[%clk 0:00:25]}  Be3+ {[%clk 0:00:07]} 53. Kc4 {[%clk 0:00:22]}  Rxa7 {[%clk 0:00:04]} 54. bxa7 {[%clk 0:00:22]}  Bxa7 {[%clk 0:00:05]} 55. Kd3 {[%clk 0:00:21]}  Kg4 {[%clk 0:00:05]} 56. Ke2 {[%clk 0:00:20]}  f4 {[%clk 0:00:06]} 57. a4 {[%clk 0:00:17]}  Kh3 {[%clk 0:00:06]} 58. Kf1 {[%clk 0:00:13]}  Kg4 {[%clk 0:00:06]} 59. Ke2 {[%clk 0:00:13]}  Bb6 {[%clk 0:00:05]} 60. Kf1 {[%clk 0:00:13]}  f3 {[%clk 0:00:06]} 61. Be6+ {[%clk 0:00:11]}  Kf4 {[%clk 0:00:05]} 62. Bh3 {[%clk 0:00:08]}  Kg5 {[%clk 0:00:06]} 63. Bd7 {[%clk 0:00:02]}  g2+ {[%clk 0:00:05]} 0-1


[Site "https://www.chess.com"]

[Event "Titled Tuesday Blitz August 1 Late 2023"]
[White "Martinez Reyes, Pedro Ramon"]
[Black "Fernandez Bustamante, Leancy B."]
[WhiteFideId "3901807"]
[BlackFideId "3523870"]
[WhiteElo "2534"]
[BlackElo "2255"]
[Result "1-0"]
[Round "1"]
[TimeControl "180+1"]
[Date "2023.08.01"]
[WhiteClock "0:00:52"]
[BlackClock "0:00:43"]
[Board "156"]

1. d4 {[%clk 0:02:59]}  c5 {[%clk 0:03:00]} 2. d5 {[%clk 0:02:59]}  d6 {[%clk 0:03:00]} 3. c4 {[%clk 0:02:59]}  Nf6 {[%clk 0:03:00]} 4. Nc3 {[%clk 0:02:59]}  g6 {[%clk 0:03:00]} 5. e4 {[%clk 0:02:59]}  Bg7 {[%clk 0:03:00]} 6. Nf3 {[%clk 0:02:59]}  O-O {[%clk 0:03:01]} 7. h3 {[%clk 0:03:00]}  e5 {[%clk 0:03:01]} 8. Be3 {[%clk 0:02:52]}  Ne8 {[%clk 0:02:59]} 9. g4 {[%clk 0:02:51]}  Na6 {[%clk 0:02:59]} 10. a3 {[%clk 0:02:51]}  Nac7 {[%clk 0:02:58]} 11. Rg1 {[%clk 0:02:49]}  Kh8 {[%clk 0:02:58]} 12. Qd2 {[%clk 0:02:46]}  f5 {[%clk 0:02:57]} 13. gxf5 {[%clk 0:02:45]}  gxf5 {[%clk 0:02:58]} 14. exf5 {[%clk 0:02:40]}  Bxf5 {[%clk 0:02:57]} 15. Bh6 {[%clk 0:02:29]}  Bg6 {[%clk 0:02:54]} 16. Bg5 {[%clk 0:02:22]}  Qd7 {[%clk 0:02:50]} 17. Nh4 {[%clk 0:02:22]}  Bh5 {[%clk 0:02:45]} 18. Ne4 {[%clk 0:02:04]}  b5 {[%clk 0:02:36]} 19. Bh6 {[%clk 0:01:46]}  Rg8 {[%clk 0:02:16]} 20. Bxg7+ {[%clk 0:01:42]}  Rxg7 {[%clk 0:02:17]} 21. Rxg7 {[%clk 0:01:41]}  Qxg7 {[%clk 0:02:03]} 22. Nf5 {[%clk 0:01:39]}  Qg6 {[%clk 0:01:49]} 23. Qg5 {[%clk 0:01:31]}  bxc4 {[%clk 0:01:37]} 24. Bxc4 {[%clk 0:01:29]}  Qxg5 {[%clk 0:01:29]} 25. Nxg5 {[%clk 0:01:30]}  Bg6 {[%clk 0:01:29]} 26. Ne7 {[%clk 0:01:27]}  Nf6 {[%clk 0:01:27]} 27. Nxg6+ {[%clk 0:01:21]}  hxg6 {[%clk 0:01:28]} 28. Nf7+ {[%clk 0:01:22]}  Kg7 {[%clk 0:01:27]} 29. Nxd6 {[%clk 0:01:22]}  Rh8 {[%clk 0:01:25]} 30. O-O-O {[%clk 0:01:19]}  Rxh3 {[%clk 0:01:24]} 31. Nb7 {[%clk 0:01:19]}  Rh4 {[%clk 0:01:20]} 32. b3 {[%clk 0:01:17]}  Rd4 {[%clk 0:01:19]} 33. Nxc5 {[%clk 0:01:15]}  Ncxd5 {[%clk 0:01:16]} 34. Ne6+ {[%clk 0:01:13]}  Kf7 {[%clk 0:01:10]} 35. Nxd4 {[%clk 0:01:14]}  exd4 {[%clk 0:01:11]} 36. Rxd4 {[%clk 0:01:14]}  Ke6 {[%clk 0:01:11]} 37. Kd2 {[%clk 0:01:12]}  Ke5 {[%clk 0:01:11]} 38. Rh4 {[%clk 0:01:07]}  Ne4+ {[%clk 0:01:09]} 39. Ke1 {[%clk 0:01:05]}  Nf4 {[%clk 0:01:06]} 40. Rh7 {[%clk 0:01:03]}  Ng2+ {[%clk 0:00:58]} 41. Kf1 {[%clk 0:01:02]}  Nf4 {[%clk 0:00:57]} 42. Rxa7 {[%clk 0:01:02]}  g5 {[%clk 0:00:57]} 43. Re7+ {[%clk 0:01:02]}  Kd4 {[%clk 0:00:57]} 44. a4 {[%clk 0:01:01]}  Nd2+ {[%clk 0:00:55]} 45. Kg1 {[%clk 0:00:58]}  Nf3+ {[%clk 0:00:55]} 46. Kh1 {[%clk 0:00:57]}  Nh3 {[%clk 0:00:52]} 47. Kg2 {[%clk 0:00:56]}  g4 {[%clk 0:00:53]} 48. Rf7 {[%clk 0:00:54]}  Nhg5 {[%clk 0:00:52]} 49. Rf4+ {[%clk 0:00:54]}  Kc3 {[%clk 0:00:51]} 50. Rxg4 {[%clk 0:00:55]}  Kd2 {[%clk 0:00:49]} 51. a5 {[%clk 0:00:55]}  Ne1+ {[%clk 0:00:49]} 52. Kf1 {[%clk 0:00:54]}  Ngf3 {[%clk 0:00:49]} 53. Re4 {[%clk 0:00:53]}  Nc2 {[%clk 0:00:47]} 54. Re2+ {[%clk 0:00:53]}  Kc3 {[%clk 0:00:47]} 55. Rxc2+ {[%clk 0:00:53]}  Kxc2 {[%clk 0:00:43]} 56. a6 {[%clk 0:00:52]} 1-0


[Site "https://www.chess.com"]

[Event "Titled Tuesday Blitz August 1 Late 2023"]
[White "Altman, Joshua"]
[Black "aleksanchess"]
[WhiteFideId "426210"]
[WhiteElo "2532"]
[BlackElo "2251"]
[Result "1-0"]
[Round "1"]
[TimeControl "180+1"]
[Date "2023.08.01"]
[WhiteClock "0:00:13"]
[BlackClock "0:00:00"]
[Board "158"]

1. Nf3 {[%clk 0:02:59]}  d5 {[%clk 0:02:58]} 2. c4 {[%clk 0:02:56]}  d4 {[%clk 0:02:52]} 3. g3 {[%clk 0:02:53]}  Nc6 {[%clk 0:02:50]} 4. Bg2 {[%clk 0:02:53]}  e5 {[%clk 0:02:50]} 5. d3 {[%clk 0:02:53]}  Nf6 {[%clk 0:02:47]} 6. O-O {[%clk 0:02:52]}  h5 {[%clk 0:02:43]} 7. h4 {[%clk 0:02:48]}  Bg4 {[%clk 0:02:41]} 8. a3 {[%clk 0:02:48]}  a5 {[%clk 0:02:40]} 9. e3 {[%clk 0:02:41]}  Be7 {[%clk 0:02:34]} 10. exd4 {[%clk 0:02:40]}  Nxd4 {[%clk 0:02:33]} 11. Nc3 {[%clk 0:02:15]}  O-O {[%clk 0:02:03]} 12. Be3 {[%clk 0:01:45]}  Nxf3+ {[%clk 0:01:59]} 13. Bxf3 {[%clk 0:01:46]}  Bxf3 {[%clk 0:02:00]} 14. Qxf3 {[%clk 0:01:47]}  Ng4 {[%clk 0:01:59]} 15. Rad1 {[%clk 0:01:38]}  c6 {[%clk 0:01:47]} 16. Ne4 {[%clk 0:01:30]}  b5 {[%clk 0:01:35]} 17. c5 {[%clk 0:01:28]}  Qd5 {[%clk 0:01:33]} 18. Qe2 {[%clk 0:00:52]}  f5 {[%clk 0:01:25]} 19. Nc3 {[%clk 0:00:53]}  Qf7 {[%clk 0:01:22]} 20. Bg5 {[%clk 0:00:36]}  Bxc5 {[%clk 0:01:05]} 21. Qf3 {[%clk 0:00:36]}  f4 {[%clk 0:00:57]} 22. gxf4 {[%clk 0:00:23]}  exf4 {[%clk 0:00:57]} 23. Qxc6 {[%clk 0:00:23]}  Rac8 {[%clk 0:00:26]} 24. Qd5 {[%clk 0:00:23]}  Qxd5 {[%clk 0:00:19]} 25. Nxd5 {[%clk 0:00:24]}  Kh7 {[%clk 0:00:17]} 26. Nxf4 {[%clk 0:00:20]}  Bd6 {[%clk 0:00:14]} 27. Nxh5 {[%clk 0:00:15]}  Rf3 {[%clk 0:00:13]} 28. Kg2 {[%clk 0:00:15]}  Rf5 {[%clk 0:00:09]} 29. Ng3 {[%clk 0:00:15]}  Rd5 {[%clk 0:00:08]} 30. Ne4 {[%clk 0:00:15]}  Rf8 {[%clk 0:00:07]} 31. Nxd6 {[%clk 0:00:14]}  Rxd6 {[%clk 0:00:07]} 32. Rde1 {[%clk 0:00:12]}  Rf5 {[%clk 0:00:06]} 33. Re4 {[%clk 0:00:13]}  Nf6 {[%clk 0:00:05]} 34. Bxf6 {[%clk 0:00:13]}  gxf6 {[%clk 0:00:05]} 35. Rfe1 {[%clk 0:00:13]}  Rxd3 {[%clk 0:00:05]} 36. Re7+ {[%clk 0:00:13]}  Kg6 {[%clk 0:00:06]} 37. R1e3 {[%clk 0:00:13]}  Rxe3 {[%clk 0:00:06]} 38. fxe3 {[%clk 0:00:13]}  Rh5 {[%clk 0:00:05]} 39. Kg3 {[%clk 0:00:13]}  Rc5 {[%clk 0:00:05]} 40. Rb7 {[%clk 0:00:12]}  Re5 {[%clk 0:00:05]} 41. Kf4 {[%clk 0:00:12]}  Rh5 {[%clk 0:00:04]} 42. Kg4 {[%clk 0:00:12]}  Re5 {[%clk 0:00:05]} 43. Kf3 {[%clk 0:00:13]}  Rh5 {[%clk 0:00:05]} 44. b3 {[%clk 0:00:12]}  Rc5 {[%clk 0:00:03]} 45. Rb6 {[%clk 0:00:12]}  Rh5 {[%clk 0:00:02]} 46. b4 {[%clk 0:00:12]}  axb4 {[%clk 0:00:02]} 47. axb4 {[%clk 0:00:13]}  Rd5 {[%clk 0:00:00]} 48. Rc6 {[%clk 0:00:13]} 1-0


[Site "https://www.chess.com"]

[Event "Titled Tuesday Blitz August 1 Late 2023"]
[White "Pein, Malcolm"]
[Black "Olenik Campa, Rudi"]
[WhiteFideId "400289"]
[BlackFideId "14633264"]
[WhiteElo "2250"]
[BlackElo "2529"]
[Result "1-0"]
[Round "1"]
[TimeControl "180+1"]
[Date "2023.08.01"]
[WhiteClock "0:00:10"]
[BlackClock "0:00:00"]
[Board "159"]

1. d4 {[%clk 0:02:50]}  e6 {[%clk 0:02:56]} 2. e4 {[%clk 0:02:49]}  b6 {[%clk 0:02:54]} 3. Nc3 {[%clk 0:02:46]}  Bb7 {[%clk 0:02:53]} 4. Bd3 {[%clk 0:02:43]}  Nc6 {[%clk 0:02:51]} 5. Nf3 {[%clk 0:02:40]}  Nb4 {[%clk 0:02:50]} 6. Be2 {[%clk 0:02:39]}  Nf6 {[%clk 0:02:48]} 7. a3 {[%clk 0:02:37]}  Nc6 {[%clk 0:02:31]} 8. e5 {[%clk 0:02:18]}  Ng8 {[%clk 0:02:26]} 9. O-O {[%clk 0:02:19]}  Be7 {[%clk 0:02:25]} 10. d5 {[%clk 0:02:16]}  exd5 {[%clk 0:02:21]} 11. Nxd5 {[%clk 0:02:17]}  Bc5 {[%clk 0:02:15]} 12. b4 {[%clk 0:02:12]}  Be7 {[%clk 0:02:15]} 13. Bf4 {[%clk 0:02:00]}  Rc8 {[%clk 0:02:03]} 14. Qd2 {[%clk 0:01:59]}  h6 {[%clk 0:02:02]} 15. Bc4 {[%clk 0:01:52]}  g5 {[%clk 0:01:36]} 16. Bg3 {[%clk 0:01:40]}  Kf8 {[%clk 0:01:32]} 17. Qc3 {[%clk 0:01:28]}  Rh7 {[%clk 0:01:26]} 18. Rad1 {[%clk 0:01:27]}  h5 {[%clk 0:01:23]} 19. Qd3 {[%clk 0:01:15]}  Rg7 {[%clk 0:01:20]} 20. h3 {[%clk 0:01:15]}  g4 {[%clk 0:01:18]} 21. hxg4 {[%clk 0:01:15]}  hxg4 {[%clk 0:01:17]} 22. Nh2 {[%clk 0:01:15]}  Bh4 {[%clk 0:01:12]} 23. Qf5 {[%clk 0:01:06]}  Rg5 {[%clk 0:00:29]} 24. Qh7 {[%clk 0:00:58]}  Bxg3 {[%clk 0:00:29]} 25. fxg3 {[%clk 0:00:58]}  Rg7 {[%clk 0:00:29]} 26. Qf5 {[%clk 0:00:53]}  Nh6 {[%clk 0:00:26]} 27. Qf4 {[%clk 0:00:52]}  Qg5 {[%clk 0:00:25]} 28. Nf6 {[%clk 0:00:33]}  Qxf4 {[%clk 0:00:21]} 29. gxf4 {[%clk 0:00:33]}  d6 {[%clk 0:00:18]} 30. exd6 {[%clk 0:00:26]}  cxd6 {[%clk 0:00:19]} 31. Rxd6 {[%clk 0:00:25]}  Rg6 {[%clk 0:00:18]} 32. f5 {[%clk 0:00:15]}  Rg5 {[%clk 0:00:15]} 33. Nh7+ {[%clk 0:00:15]}  Kg7 {[%clk 0:00:14]} 34. Nxg5 {[%clk 0:00:14]}  Ne5 {[%clk 0:00:13]} 35. f6+ {[%clk 0:00:12]}  Kg6 {[%clk 0:00:12]} 36. Bd3+ {[%clk 0:00:11]}  Kxg5 {[%clk 0:00:13]} 37. Rd4 {[%clk 0:00:09]}  g3 {[%clk 0:00:10]} 38. Nf3+ {[%clk 0:00:08]}  Nxf3+ {[%clk 0:00:10]} 39. gxf3 {[%clk 0:00:09]}  Nf5 {[%clk 0:00:10]} 40. Rg4+ {[%clk 0:00:08]}  Kxf6 {[%clk 0:00:08]} 41. Rf4 {[%clk 0:00:09]}  g2 {[%clk 0:00:05]} 42. Rxf5+ {[%clk 0:00:09]}  Ke6 {[%clk 0:00:06]} 43. Kxg2 {[%clk 0:00:10]}  Rg8+ {[%clk 0:00:03]} 44. Kf2 {[%clk 0:00:10]}  Kd6 {[%clk 0:00:02]} 45. Re1 {[%clk 0:00:11]}  Kc7 {[%clk 0:00:02]} 46. Rxf7+ {[%clk 0:00:11]}  Kb8 {[%clk 0:00:02]} 47. Ree7 {[%clk 0:00:11]}  Bc6 {[%clk 0:00:00]} 48. Be4 {[%clk 0:00:10]} 1-0


[Site "https://www.chess.com"]

[Event "Titled Tuesday Blitz August 1 Late 2023"]
[White "Chor, Kevin"]
[Black "BrandonJiang123456"]
[WhiteFideId "2090740"]
[WhiteElo "2526"]
[BlackElo "2249"]
[Result "1-0"]
[Round "1"]
[TimeControl "180+1"]
[Date "2023.08.01"]
[WhiteClock "0:00:06"]
[BlackClock "0:00:02"]
[Board "160"]

1. e4 {[%clk 0:03:00]}  e5 {[%clk 0:02:42]} 2. Nf3 {[%clk 0:02:58]}  Nc6 {[%clk 0:02:41]} 3. Bb5 {[%clk 0:02:58]}  f5 {[%clk 0:02:40]} 4. d3 {[%clk 0:02:57]}  fxe4 {[%clk 0:02:40]} 5. dxe4 {[%clk 0:02:58]}  Nf6 {[%clk 0:02:40]} 6. O-O {[%clk 0:02:58]}  Bc5 {[%clk 0:02:37]} 7. Qd3 {[%clk 0:02:58]}  d6 {[%clk 0:02:27]} 8. Qc4 {[%clk 0:02:43]}  Bd7 {[%clk 0:02:25]} 9. Ng5 {[%clk 0:02:20]}  Qe7 {[%clk 0:02:20]} 10. Nc3 {[%clk 0:01:59]}  a6 {[%clk 0:01:47]} 11. Bxc6 {[%clk 0:01:57]}  bxc6 {[%clk 0:01:42]} 12. Be3 {[%clk 0:01:27]}  h6 {[%clk 0:01:24]} 13. Nf3 {[%clk 0:01:12]}  Bxe3 {[%clk 0:01:09]} 14. fxe3 {[%clk 0:01:13]}  c5 {[%clk 0:00:57]} 15. Rad1 {[%clk 0:00:56]}  Be6 {[%clk 0:00:52]} 16. Nd5 {[%clk 0:00:44]}  Nxd5 {[%clk 0:00:45]} 17. exd5 {[%clk 0:00:45]}  Bd7 {[%clk 0:00:45]} 18. Qe4 {[%clk 0:00:33]}  O-O {[%clk 0:00:43]} 19. Nh4 {[%clk 0:00:32]}  Qg5 {[%clk 0:00:36]} 20. Ng6 {[%clk 0:00:25]}  Rxf1+ {[%clk 0:00:24]} 21. Rxf1 {[%clk 0:00:25]}  Bg4 {[%clk 0:00:17]} 22. h4 {[%clk 0:00:17]}  Qh5 {[%clk 0:00:15]} 23. Ne7+ {[%clk 0:00:13]}  Kh8 {[%clk 0:00:16]} 24. Ng6+ {[%clk 0:00:13]}  Kg8 {[%clk 0:00:16]} 25. Ne7+ {[%clk 0:00:12]}  Kh8 {[%clk 0:00:16]} 26. c4 {[%clk 0:00:10]}  Be2 {[%clk 0:00:13]} 27. Rf2 {[%clk 0:00:10]}  Re8 {[%clk 0:00:10]} 28. Ng6+ {[%clk 0:00:09]}  Kg8 {[%clk 0:00:10]} 29. Rf5 {[%clk 0:00:06]}  Qxg6 {[%clk 0:00:07]} 30. Rf8+ {[%clk 0:00:06]}  Rxf8 {[%clk 0:00:06]} 31. Qxg6 {[%clk 0:00:06]}  Bxc4 {[%clk 0:00:06]} 32. Qe6+ {[%clk 0:00:05]}  Kh8 {[%clk 0:00:05]} 33. e4 {[%clk 0:00:06]}  Rf1+ {[%clk 0:00:04]} 34. Kh2 {[%clk 0:00:06]}  Kh7 {[%clk 0:00:04]} 35. Qd7 {[%clk 0:00:06]}  Bxa2 {[%clk 0:00:03]} 36. Qxc7 {[%clk 0:00:06]}  Bc4 {[%clk 0:00:03]} 37. Qxd6 {[%clk 0:00:06]}  Rf2 {[%clk 0:00:03]} 38. Qxe5 {[%clk 0:00:06]}  Bf1 {[%clk 0:00:04]} 39. Kg3 {[%clk 0:00:05]}  Rxg2+ {[%clk 0:00:04]} 40. Kf3 {[%clk 0:00:06]}  Rxb2 {[%clk 0:00:02]} 41. Qxb2 {[%clk 0:00:06]} 1-0


[Site "https://www.chess.com"]

[Event "Titled Tuesday Blitz August 1 Late 2023"]
[White "Broca Jimenez, Fernando"]
[Black "Kiremitciyan, Ari"]
[WhiteFideId "5104742"]
[BlackFideId "6373445"]
[WhiteElo "2230"]
[BlackElo "2526"]
[Result "1-0"]
[Round "1"]
[TimeControl "180+1"]
[Date "2023.08.01"]
[WhiteClock "0:02:00"]
[BlackClock "0:02:37"]
[Board "161"]

1. e4 {[%clk 0:02:57]}  e5 {[%clk 0:02:59]} 2. Nf3 {[%clk 0:02:55]}  Nc6 {[%clk 0:02:58]} 3. Bb5 {[%clk 0:02:55]}  g6 {[%clk 0:02:58]} 4. d4 {[%clk 0:02:46]}  exd4 {[%clk 0:02:58]} 5. Bg5 {[%clk 0:02:45]}  Be7 {[%clk 0:02:58]} 6. Bxe7 {[%clk 0:02:37]}  Qxe7 {[%clk 0:02:59]} 7. Bxc6 {[%clk 0:02:36]}  dxc6 {[%clk 0:02:54]} 8. Qxd4 {[%clk 0:02:36]}  Nf6 {[%clk 0:02:52]} 9. O-O {[%clk 0:02:28]}  Bg4 {[%clk 0:02:49]} 10. e5 {[%clk 0:02:15]}  Bxf3 {[%clk 0:02:49]} 11. exf6 {[%clk 0:02:09]}  Qe4 {[%clk 0:02:40]} 12. Qxe4+ {[%clk 0:01:59]}  Bxe4 {[%clk 0:02:37]} 13. Re1 {[%clk 0:02:00]} 1-0


[Site "https://www.chess.com"]

[Event "Titled Tuesday Blitz August 1 Late 2023"]
[White "Sreyas Payyappat"]
[Black "Da Matta, Eduardo Cesar"]
[WhiteFideId "46674969"]
[BlackFideId "2193108"]
[WhiteElo "2526"]
[BlackElo "2229"]
[Result "1-0"]
[Round "1"]
[TimeControl "180+1"]
[Date "2023.08.01"]
[WhiteClock "0:00:13"]
[BlackClock "0:00:19"]
[Board "162"]

1. e4 {[%clk 0:03:00]}  c5 {[%clk 0:02:59]} 2. Nf3 {[%clk 0:03:00]}  d6 {[%clk 0:03:00]} 3. d4 {[%clk 0:03:01]}  cxd4 {[%clk 0:03:01]} 4. Nxd4 {[%clk 0:03:01]}  Nf6 {[%clk 0:03:02]} 5. Nc3 {[%clk 0:02:56]}  Nc6 {[%clk 0:03:02]} 6. Bg5 {[%clk 0:02:52]}  e6 {[%clk 0:03:01]} 7. f4 {[%clk 0:02:49]}  a6 {[%clk 0:03:01]} 8. Qd2 {[%clk 0:02:48]}  Bd7 {[%clk 0:03:00]} 9. O-O-O {[%clk 0:02:47]}  Be7 {[%clk 0:03:00]} 10. Be2 {[%clk 0:02:46]}  h6 {[%clk 0:02:58]} 11. Bxf6 {[%clk 0:02:44]}  gxf6 {[%clk 0:02:58]} 12. Bf3 {[%clk 0:02:41]}  Qc7 {[%clk 0:02:55]} 13. Rhe1 {[%clk 0:02:37]}  O-O-O {[%clk 0:02:50]} 14. Qe3 {[%clk 0:02:33]}  Kb8 {[%clk 0:02:47]} 15. Kb1 {[%clk 0:02:31]}  h5 {[%clk 0:02:47]} 16. Rd2 {[%clk 0:02:30]}  Na5 {[%clk 0:02:35]} 17. Qf2 {[%clk 0:02:13]}  Nc4 {[%clk 0:02:26]} 18. Rd3 {[%clk 0:02:11]}  Rc8 {[%clk 0:02:21]} 19. Red1 {[%clk 0:02:04]}  Qa5 {[%clk 0:02:17]} 20. Nb3 {[%clk 0:01:59]}  Qb4 {[%clk 0:02:15]} 21. Qd4 {[%clk 0:01:41]}  Qb6 {[%clk 0:01:38]} 22. Qxb6 {[%clk 0:01:28]}  Nxb6 {[%clk 0:01:39]} 23. h3 {[%clk 0:01:18]}  h4 {[%clk 0:01:36]} 24. Rd4 {[%clk 0:01:04]}  Rc7 {[%clk 0:01:35]} 25. Rb4 {[%clk 0:01:03]}  Ka7 {[%clk 0:01:34]} 26. Nd4 {[%clk 0:00:56]}  Rhc8 {[%clk 0:01:31]} 27. Rb3 {[%clk 0:00:55]}  Nc4 {[%clk 0:01:30]} 28. Be2 {[%clk 0:00:48]}  Ne3 {[%clk 0:01:28]} 29. Rd2 {[%clk 0:00:43]}  Nc4 {[%clk 0:01:25]} 30. Bxc4 {[%clk 0:00:42]}  Rxc4 {[%clk 0:01:26]} 31. Nf3 {[%clk 0:00:35]}  Bc6 {[%clk 0:01:14]} 32. Re2 {[%clk 0:00:20]}  b5 {[%clk 0:01:11]} 33. Nxh4 {[%clk 0:00:19]}  b4 {[%clk 0:01:09]} 34. Nd1 {[%clk 0:00:18]}  Bxe4 {[%clk 0:01:08]} 35. Ne3 {[%clk 0:00:17]}  Rd4 {[%clk 0:01:04]} 36. Nf3 {[%clk 0:00:16]}  Rxc2 {[%clk 0:00:35]} 37. Rxc2 {[%clk 0:00:14]}  Bxc2+ {[%clk 0:00:26]} 38. Kxc2 {[%clk 0:00:15]}  Rxf4 {[%clk 0:00:25]} 39. Kd3 {[%clk 0:00:14]}  d5 {[%clk 0:00:24]} 40. Nd4 {[%clk 0:00:14]}  e5 {[%clk 0:00:19]} 41. Nc6+ {[%clk 0:00:13]} 1-0


[Site "https://www.chess.com"]